fUSD/lending_fUSD_20250904
["ID","MTS","AMOUNT","RATE_DAILY","PERIOD"]
[383498246,1756959045158,-400.0,0.00024383,2]
[383498247,1756959045168,-400.0,0.00024383,2]
[383498249,1756959045178,-400.0,0.00024383,2]
[383498251,1756959045187,-400.0,0.00024383,2]
[383498253,1756959045196,-2931.7,0.00024383,2]
[383498254,1756959045205,-406.25110148,0.00024556,2]
[383498256,1756959045214,-422.05,0.00024556,2]
[383498258,1756959045223,-400.0,0.00024556,2]
[383498259,1756959045233,-400.0,0.00024556,2]
[383498260,1756959045242,-400.0,0.00024556,2]
[383498261,1756959045251,-400.0,0.00024556,2]
[383498262,1756959045260,-400.0,0.00024556,2]
[383498263,1756959045270,-400.0,0.00024556,2]
[383498264,1756959045279,-400.0,0.00024556,2]
[383498265,1756959045289,-400.0,0.00024556,2]
[383498266,1756959045298,-400.0,0.00024556,2]
[383498267,1756959045307,-400.0,0.00024556,2]
[383498268,1756959045319,-632.22,0.00024556,2]
[383498269,1756959045329,-400.0,0.00024556,2]
[383498270,1756959045340,-400.0,0.00024556,2]
[383498271,1756959045349,-1520.76,0.00024556,2]
[383498272,1756959045359,-400.0,0.00024556,2]
[383498274,1756959045369,-445.81,0.00024556,2]
[383498275,1756959045378,-410.80856239,0.00024556,2]
[383498277,1756959045389,-400.0,0.00024556,2]
[383498278,1756959045400,-1000.0,0.00024616,2]
[383498279,1756959045410,-500.0,0.00024618,2]
[383498280,1756959045422,-400.0,0.00024657,2]
[383498281,1756959045432,-400.0,0.00024657,2]
[383498282,1756959045441,-400.0,0.00024657,2]
[383498283,1756959045451,-434.47,0.00024657,2]
[383498284,1756959045460,-400.0,0.00024657,2]
[383498285,1756959045469,-400.0,0.00024657,2]
[383498286,1756959045479,-465.47,0.00024657,2]
[383498287,1756959045490,-400.0,0.00024657,2]
[383498288,1756959045499,-400.0,0.00024657,2]
[383498289,1756959045509,-400.0,0.00024657,2]
[383498290,1756959045519,-400.0,0.00024657,2]
[383498291,1756959045529,-456.5,0.00024657,2]
[383498292,1756959045539,-354.11302621,0.00024657,2]
[383498293,1756959045548,-400.0,0.00024657,2]
[383498294,1756959045558,-400.0,0.00024657,2]
[383498295,1756959045568,-400.0,0.00024657,2]
[383498296,1756959045578,-400.0,0.00024657,2]
[383498297,1756959045588,-2931.7,0.00024657,2]
[383498298,1756959045597,-1000.0,0.00024658,2]
[383498299,1756959045607,-160.0,0.0002466,7]
[383498300,1756959045616,-160.0,0.00024718,2]
[383498301,1756959045626,-514.64478986,0.00024718,2]
[383498302,1756959045635,-212.59699798,0.00024718,2]
[383498303,1756959045644,-160.0,0.00024718,2]
[383498304,1756959045654,-212.59699798,0.000248,3]
[383498305,1756959045663,-514.64478986,0.000248,3]
[383498306,1756959045675,-160.0,0.000248,3]
[383498307,1756959045685,-626568.231184,0.000248,3]
[383498308,1756959045695,-900.0,0.000248,9]
[383498309,1756959045704,-900.0,0.000248,9]
[383498310,1756959045713,-900.0,0.000248,9]
[383498311,1756959045723,-900.0,0.000248,9]
[383498312,1756959045733,-900.0,0.000248,9]
[383498313,1756959045745,-900.0,0.000248,9]
[383498314,1756959045756,-900.0,0.000248,9]
[383498315,1756959045766,-921.88554369,0.000248,9]
[383498316,1756959045775,-422.05,0.0002483,2]
[383498317,1756959045785,-299.73524116,0.0002483,2]
[383498318,1756959045795,-400.0,0.0002483,2]
[383498319,1756959045804,-400.0,0.0002483,2]
[383498320,1756959045814,-400.0,0.0002483,2]
[383498321,1756959045824,-400.0,0.0002483,2]
[383498322,1756959045834,-400.0,0.0002483,2]
[383498323,1756959045843,-400.0,0.0002483,2]
[383498324,1756959045853,-400.0,0.0002483,2]
[383498325,1756959045864,-400.0,0.0002483,2]
[383498326,1756959045874,-400.0,0.0002483,2]
[383498327,1756959045884,-632.22,0.0002483,2]
[383498328,1756959045893,-400.0,0.0002483,2]
[383498329,1756959045902,-400.0,0.0002483,2]
[383498330,1756959045912,-1520.76,0.0002483,2]
[383498331,1756959045921,-400.0,0.0002483,2]
[383498332,1756959045933,-445.81,0.0002483,2]
[383498333,1756959045943,-400.0,0.0002483,2]
[383498334,1756959045954,-869.0,0.00024877,2]
[383498335,1756959045963,-2600.0,0.000249,9]
[383498336,1756959045975,-533306.819017,0.000249,3]
[383498337,1756959045987,-9387.46490263,0.000249,2]
[383498338,1756959045996,-400.0,0.00024931,2]
[383498339,1756959046006,-163.25674941,0.00024931,2]
[383498340,1756959046016,-400.0,0.00024931,2]
[383498341,1756959046026,-434.47,0.00024931,2]
[383498342,1756959046036,-400.0,0.00024931,2]
[383498343,1756959046047,-178.53535562,0.00024931,2]
[383498344,1756959046057,-465.47,0.00024931,2]
[383498345,1756959046068,-400.0,0.00024931,2]
[383498346,1756959046079,-400.0,0.00024931,2]
[383498347,1756959046091,-400.0,0.00024931,2]
[383498348,1756959046102,-341.10706949,0.00024931,2]
[383498349,1756959046111,-456.5,0.00024931,2]
[383498350,1756959046121,-400.0,0.00024931,2]
[383498351,1756959046131,-400.0,0.00024931,2]
[383498352,1756959046142,-319.15154312,0.00024931,2]
[383498353,1756959046155,-400.0,0.00024931,2]
[383498354,1756959046165,-2931.7,0.00024931,2]
[383498355,1756959046175,-160.0,0.00025,3]
[383498356,1756959046185,-160.0,0.00025,30]
[383498357,1756959046195,-422.05,0.00025104,2]
[383498358,1756959046204,-400.0,0.00025104,2]
[383498359,1756959046214,-400.0,0.00025104,2]
[383498360,1756959046224,-400.0,0.00025104,2]
[383498361,1756959046233,-400.0,0.00025104,2]
[383498362,1756959046243,-403.8079896,0.00025104,2]
[383498363,1756959046253,-400.0,0.00025104,2]
[383498364,1756959046263,-400.0,0.00025104,2]
[383498365,1756959046273,-400.0,0.00025104,2]
[383498366,1756959046283,-400.0,0.00025104,2]
[383498367,1756959046292,-632.22,0.00025104,2]
[383498368,1756959046302,-400.0,0.00025104,2]
[383498369,1756959046312,-400.0,0.00025104,2]
[383498370,1756959046324,-1520.76,0.00025104,2]
[383498371,1756959046335,-400.0,0.00025104,2]
[383498372,1756959046345,-445.81,0.00025104,2]
[383498373,1756959046356,-400.95065098,0.00025104,2]
[383498374,1756959046367,-1000.0,0.00025166,2]
[383498375,1756959046379,-3292.0,0.00025195,2]
[383498376,1756959046389,-468.52819946,0.00025205,2]
[383498377,1756959046400,-400.0,0.00025205,2]
[383498378,1756959046410,-434.47,0.00025205,2]
[383498379,1756959046424,-400.0,0.00025205,2]
[383498380,1756959046433,-465.47,0.00025205,2]
[383498381,1756959046444,-400.0,0.00025205,2]
[383498382,1756959046454,-400.0,0.00025205,2]
[383498383,1756959046464,-400.0,0.00025205,2]
[383498384,1756959046474,-456.5,0.00025205,2]
[383498385,1756959046484,-400.0,0.00025205,2]
[383498386,1756959046498,-379.18550323,0.00025205,2]
[383498387,1756959046508,-369.52523302,0.00025205,2]
[383498388,1756959046518,-2931.7,0.00025205,2]
[383498389,1756959046528,-150.0,0.0002525,2]
[383498390,1756959046538,-150.0,0.0002525,2]
[383498391,1756959046549,-422.05,0.00025378,2]
[383498392,1756959046559,-400.0,0.00025378,2]
[383498393,1756959046568,-400.0,0.00025378,2]
[383498394,1756959046578,-400.0,0.00025378,2]
[383498395,1756959046588,-400.0,0.00025378,2]
[383498396,1756959046597,-400.0,0.00025378,2]
[383498397,1756959046608,-390.90705473,0.00025378,2]
[383498398,1756959046619,-400.0,0.00025378,2]
[383498399,1756959046629,-400.0,0.00025378,2]
[383498400,1756959046639,-632.22,0.00025378,2]
[383498401,1756959046650,-400.0,0.00025378,2]
[383498402,1756959046660,-438.35296235,0.00025378,2]
[383498403,1756959046670,-1520.76,0.00025378,2]
[383498404,1756959046680,-400.0,0.00025378,2]
[383498405,1756959046690,-445.81,0.00025378,2]
[383498406,1756959046710,-400.0,0.00025479,2]
[383498407,1756959046732,-434.47,0.00025479,2]
[383498408,1756959046743,-400.0,0.00025479,2]
[383498409,1756959046753,-465.47,0.00025479,2]
[383498410,1756959046764,-400.0,0.00025479,2]
[383498411,1756959046774,-400.0,0.00025479,2]
[383498412,1756959046784,-400.0,0.00025479,2]
[383498413,1756959046794,-456.5,0.00025479,2]
[383498414,1756959046805,-400.0,0.00025479,2]
[383498415,1756959046816,-2931.7,0.00025479,2]
[383498416,1756959046826,-1000.0,0.00025505,2]
[383498417,1756959046838,-422.05,0.00025652,2]
[383498418,1756959046848,-193.12465814,0.00025652,2]
[383498419,1756959046859,-400.0,0.00025652,2]
[383498420,1756959046872,-400.0,0.00025652,2]
[383498421,1756959046883,-400.0,0.00025652,2]
[383498422,1756959046892,-400.0,0.00025652,2]
[383498423,1756959046904,-400.0,0.00025652,2]
[383498424,1756959046914,-400.0,0.00025652,2]
[383498425,1756959046924,-632.22,0.00025652,2]
[383498426,1756959046935,-429.42275509,0.00025652,2]
[383498427,1756959046945,-1520.76,0.00025652,2]
[383498428,1756959046955,-400.0,0.00025652,2]
[383498429,1756959046966,-445.81,0.00025652,2]
[383498430,1756959046977,-287.48915356,0.000257,2]
[383498431,1756959046987,-287.48915356,0.000257,2]
[383498432,1756959046998,-196.39047398,0.00025714,2]
[383498433,1756959047008,-400.0,0.00025753,2]
[383498434,1756959047018,-434.47,0.00025753,2]
[383498435,1756959047028,-400.0,0.00025753,2]
[383498436,1756959047039,-465.47,0.00025753,2]
[383498437,1756959047049,-463.48413716,0.00025753,2]
[383498438,1756959047059,-400.0,0.00025753,2]
[383498439,1756959047069,-400.0,0.00025753,2]
[383498440,1756959047079,-456.5,0.00025753,2]
[383498441,1756959047089,-400.0,0.00025753,2]
[383498442,1756959047100,-2931.7,0.00025753,2]
[383498443,1756959047110,-422.05,0.00025926,2]
[383498444,1756959047120,-400.0,0.00025926,2]
[383498445,1756959047130,-400.0,0.00025926,2]
[383498446,1756959047140,-400.0,0.00025926,2]
[383498447,1756959047150,-400.0,0.00025926,2]
[383498448,1756959047161,-400.0,0.00025926,2]
[383498449,1756959047171,-400.0,0.00025926,2]
[383498450,1756959047181,-632.22,0.00025926,2]
[383498451,1756959047191,-1520.76,0.00025926,2]
[383498452,1756959047201,-400.0,0.00025926,2]
[383498453,1756959047211,-445.81,0.00025926,2]
[383498454,1756959047222,-327.3491668,0.00025993,2]
[383498455,1756959047232,-1023.2,0.00026,2]
[383498456,1756959047242,-150.0,0.00026,2]
[383498457,1756959047252,-9387.4649024,0.0002601,4]
[383498458,1756959047262,-400.0,0.00026027,2]
[383498459,1756959047273,-434.47,0.00026027,2]
[383498460,1756959047283,-400.0,0.00026027,2]
[383498461,1756959047293,-465.47,0.00026027,2]
[383498462,1756959047303,-400.0,0.00026027,2]
[383498463,1756959047313,-400.0,0.00026027,2]
[383498464,1756959047323,-456.5,0.00026027,2]
[383498465,1756959047334,-400.0,0.00026027,2]
[383498466,1756959047348,-2931.7,0.00026027,2]
[383498467,1756959047358,-422.05,0.000262,2]
[383498468,1756959047368,-400.0,0.000262,2]
[383498469,1756959047379,-212.43346551,0.000262,2]
[383498470,1756959047391,-400.0,0.000262,2]
[383498471,1756959047401,-400.0,0.000262,2]
[383498472,1756959047412,-400.0,0.000262,2]
[383498473,1756959047423,-400.0,0.000262,2]
[383498474,1756959047435,-632.22,0.000262,2]
[383498475,1756959047445,-1520.76,0.000262,2]
[383498476,1756959047456,-400.0,0.000262,2]
[383498477,1756959047466,-445.81,0.000262,2]
[383498478,1756959047476,-400.0,0.00026301,2]
[383498479,1756959047487,-434.47,0.00026301,2]
[383498480,1756959047498,-400.0,0.00026301,2]
[383498481,1756959047509,-465.47,0.00026301,2]
[383498482,1756959047520,-400.0,0.00026301,2]
[383498483,1756959047530,-400.0,0.00026301,2]
[383498484,1756959047540,-456.5,0.00026301,2]
[383498485,1756959047551,-400.0,0.00026301,2]
[383498486,1756959047562,-2500.0,0.00026301,7]
[383498487,1756959047572,-2931.7,0.00026301,2]
[383498488,1756959047583,-1000.0,0.00026395,2]
[383498489,1756959047594,-422.05,0.00026474,2]
[383498490,1756959047606,-400.0,0.00026474,2]
[383498491,1756959047617,-400.0,0.00026474,2]
[383498492,1756959047627,-400.0,0.00026474,2]
[383498493,1756959047639,-400.0,0.00026474,2]
[383498494,1756959047649,-400.0,0.00026474,2]
[383498495,1756959047660,-632.22,0.00026474,2]
[383498496,1756959047671,-1520.76,0.00026474,2]
[383498497,1756959047681,-400.0,0.00026474,2]
[383498498,1756959047692,-445.81,0.00026474,2]
[383498499,1756959047702,-400.0,0.00026575,2]
[383498500,1756959047712,-434.47,0.00026575,2]
[383498501,1756959047724,-400.0,0.00026575,2]
[383498502,1756959047734,-2400.07356613,0.00026575,2]
[383498503,1756959047745,-465.47,0.00026575,2]
[383498504,1756959047755,-400.0,0.00026575,2]
[383498505,1756959047764,-400.0,0.00026575,2]
[383498506,1756959047775,-456.5,0.00026575,2]
[383498507,1756959047786,-400.0,0.00026575,2]
[383498508,1756959047796,-2931.7,0.00026575,2]
[383498509,1756959047806,-1175.0,0.00026586,2]
[383498510,1756959047816,-6163.0,0.00026586,2]
[383498511,1756959047826,-4163.0,0.00026586,2]
[383498512,1756959047836,-21149.0,0.00026586,2]
[383498513,1756959047846,-724.0,0.00026586,2]
[383498514,1756959047857,-7320.06,0.00026591,2]
[383498515,1756959047869,-999.99,0.00026591,2]
[383498516,1756959047880,-9205.65,0.00026591,2]
[383498517,1756959047890,-150.99,0.00026591,2]
[383498518,1756959047901,-3600.31,0.00026591,2]
[383498519,1756959047911,-150.99,0.00026591,2]
[383498520,1756959047921,-299.99,0.00026591,12]
[383498521,1756959047932,-5454.62,0.000266,7]
[383498522,1756959047942,-174.18,0.00026676,2]
[383498523,1756959047952,-422.05,0.00026748,2]
[383498524,1756959047962,-400.0,0.00026748,2]
[383498525,1756959047972,-400.0,0.00026748,2]
[383498526,1756959047983,-400.0,0.00026748,2]
[383498527,1756959047994,-400.0,0.00026748,2]
[383498528,1756959048005,-279.94447424,0.00026748,2]
[383498529,1756959048015,-632.22,0.00026748,2]
[383498530,1756959048026,-1520.76,0.00026748,2]
[383498531,1756959048036,-400.0,0.00026748,2]
[383498532,1756959048047,-445.81,0.00026748,2]
[383498533,1756959048057,-434.47,0.00026849,2]
[383498534,1756959048068,-400.0,0.00026849,2]
[383498535,1756959048079,-465.47,0.00026849,2]
[383498536,1756959048089,-400.0,0.00026849,2]
[383498537,1756959048099,-400.0,0.00026849,2]
[383498538,1756959048109,-456.5,0.00026849,2]
[383498539,1756959048119,-234.06317232,0.00026849,2]
[383498540,1756959048129,-2931.7,0.00026849,2]
[383498541,1756959048139,-2035.0,0.00026853,2]
[383498542,1756959048150,-3382.0,0.00026853,2]
[383498543,1756959048160,-1258.0,0.00026853,2]
[383498544,1756959048170,-924.0,0.00026853,2]
[383498545,1756959048181,-567.0,0.00026853,2]
[383498546,1756959048191,-1300.0,0.00026853,2]
[383498547,1756959048201,-600.0,0.00026853,2]
[383498548,1756959048212,-1577.0,0.00026853,2]
[383498549,1756959048225,-811.0,0.00026853,2]
[383498550,1756959048235,-160.0,0.00027,10]
[383498551,1756959048245,-160.0,0.00027,10]
[383498552,1756959048255,-422.05,0.00027022,2]
[383498553,1756959048266,-400.0,0.00027022,2]
[383498554,1756959048277,-400.0,0.00027022,2]
[383498555,1756959048288,-400.0,0.00027022,2]
[383498556,1756959048298,-400.0,0.00027022,2]
[383498557,1756959048309,-632.22,0.00027022,2]
[383498558,1756959048320,-1520.76,0.00027022,2]
[383498559,1756959048330,-151.67423312,0.00027022,2]
[383498560,1756959048652,-445.81,0.00027022,2]
[383498561,1756959048668,-9387.4649024,0.00027121,7]
[383498562,1756959048678,-434.47,0.00027123,2]
[383498563,1756959048689,-433.52223023,0.00027123,2]
[383498564,1756959048698,-465.47,0.00027123,2]
[383498565,1756959048708,-400.0,0.00027123,2]
[383498566,1756959048718,-400.0,0.00027123,2]
[383498567,1756959048728,-456.5,0.00027123,2]
[383498568,1756959048737,-2931.7,0.00027123,2]
[383498569,1756959048747,-510.0,0.00027137,2]
[383498570,1756959048757,-212.59699798,0.000272,7]
[383498571,1756959048766,-514.64478986,0.000272,7]
[383498572,1756959048776,-160.0,0.000272,7]
[383498573,1756959048786,-843.0,0.00027269,2]
[383498574,1756959048795,-1000.0,0.00027285,2]
[383498575,1756959048805,-422.05,0.00027296,2]
[383498576,1756959048815,-400.0,0.00027296,2]
[383498577,1756959048824,-400.0,0.00027296,2]
[383498578,1756959048834,-400.0,0.00027296,2]
[383498579,1756959048844,-250.6944651,0.00027296,2]
[383498580,1756959048854,-632.22,0.00027296,2]
[383498581,1756959048864,-1520.76,0.00027296,2]
[383498582,1756959048875,-445.81,0.00027296,2]
[383498583,1756959048885,-1023.2,0.000273,2]
[383498584,1756959048894,-4183.0278264,0.00027397,2]
[383498585,1756959048904,-434.47,0.00027397,2]
[383498586,1756959048914,-465.47,0.00027397,2]
[383498587,1756959048923,-400.0,0.00027397,2]
[383498588,1756959048933,-400.0,0.00027397,2]
[383498589,1756959048943,-456.5,0.00027397,2]
[383498590,1756959048952,-500.0,0.00027397,2]
[383498591,1756959048962,-500.0,0.00027397,2]
[383498592,1756959048971,-500.0,0.00027397,2]
[383498593,1756959048981,-500.0,0.00027397,2]
[383498594,1756959048991,-500.0,0.00027397,2]
[383498595,1756959049000,-500.0,0.00027397,2]
[383498596,1756959049010,-237.40530749,0.00027397,2]
[383498597,1756959049020,-500.0,0.00027397,2]
[383498598,1756959049029,-500.0,0.00027397,2]
[383498599,1756959049039,-2931.7,0.00027397,2]
[383498600,1756959049048,-300.0,0.00027397,2]
[383498601,1756959049058,-700.0,0.00027397,2]
[383498602,1756959049069,-204.34,0.00027397,80]
[383498603,1756959049079,-311.17,0.0002741,2]
[383498604,1756959049089,-157.62,0.00027425,30]
[383498605,1756959049099,-744.47174596,0.0002756,4]
[383498606,1756959049108,-422.05,0.0002757,2]
[383498607,1756959049118,-245.78676626,0.0002757,2]
[383498608,1756959049128,-400.0,0.0002757,2]
[383498609,1756959049138,-400.0,0.0002757,2]
[383498610,1756959049148,-632.22,0.0002757,2]
[383498611,1756959049158,-1520.76,0.0002757,2]
[383498612,1756959049168,-445.81,0.0002757,2]
[383498613,1756959049177,-4609.0,0.00027591,2]
[383498614,1756959049188,-150.0,0.0002765,2]
[383498615,1756959049198,-353.72753966,0.0002766,2]
[383498616,1756959049207,-434.47,0.00027671,2]
[383498617,1756959049217,-465.47,0.00027671,2]
[383498618,1756959049227,-400.0,0.00027671,2]
[383498619,1756959049237,-400.0,0.00027671,2]
[383498620,1756959049247,-456.5,0.00027671,2]
[383498621,1756959049257,-1896.0,0.000277,2]
[383498622,1756959049267,-422.05,0.00027844,2]
[383498623,1756959049277,-400.0,0.00027844,2]
[383498624,1756959049288,-339.77961848,0.00027844,2]
[383498625,1756959049298,-632.22,0.00027844,2]
[383498626,1756959049308,-1520.76,0.00027844,2]
[383498627,1756959049318,-445.81,0.00027844,2]
[383498628,1756959049329,-5454.62,0.000279,7]
[383498629,1756959049341,-327.3491668,0.00027936,2]
[383498630,1756959049351,-434.47,0.00027945,2]
[383498631,1756959049361,-150.0,0.00027945,2]
[383498632,1756959049371,-465.47,0.00027945,2]
[383498633,1756959049380,-314.23677092,0.00027945,2]
[383498634,1756959049391,-502.24890737,0.00027945,2]
[383498635,1756959049404,-500.0,0.00027945,2]
[383498636,1756959049413,-500.0,0.00027945,2]
[383498637,1756959049425,-456.5,0.00027945,2]
[383498638,1756959049436,-150.0,0.00027945,2]
[383498639,1756959049446,-695.0,0.00027945,2]
[383498640,1756959049456,-500.0,0.00027945,2]
[383498641,1756959049465,-819.0,0.00027945,2]
[383498642,1756959049475,-160.0,0.00028,30]
[383498643,1756959049485,-211.44324062,0.00028082,2]
[383498644,1756959049495,-500.0,0.00028082,2]
[383498645,1756959049504,-500.0,0.00028082,2]
[383498646,1756959049514,-150.0,0.00028082,2]
[383498647,1756959049523,-695.0,0.00028082,2]
[383498648,1756959049533,-500.0,0.00028082,2]
[383498649,1756959049542,-819.0,0.00028082,2]
[383498650,1756959049551,-422.05,0.00028118,2]
[383498651,1756959049560,-400.0,0.00028118,2]
[383498652,1756959049570,-632.22,0.00028118,2]
[383498653,1756959049579,-1520.76,0.00028118,2]
[383498654,1756959049588,-445.81,0.00028118,2]
[383498655,1756959049598,-500.0,0.00028219,2]
[383498656,1756959049608,-500.0,0.00028219,2]
[383498657,1756959049617,-150.0,0.00028219,2]
[383498658,1756959049625,-695.0,0.00028219,2]
[383498659,1756959049634,-500.0,0.00028219,2]
[383498660,1756959049642,-819.0,0.00028219,2]
[383498661,1756959049650,-434.5866098,0.00028219,2]
[383498662,1756959049659,-465.70511061,0.00028219,2]
[383498663,1756959049669,-456.5964996,0.00028219,2]
[383498664,1756959049678,-9387.4649024,0.00028231,9]
[383498665,1756959049687,-500.0,0.00028356,2]
[383498666,1756959049696,-504.2306496,0.00028356,2]
[383498667,1756959049704,-257.03507409,0.00028356,2]
[383498668,1756959049714,-695.0,0.00028356,2]
[383498669,1756959049723,-606.15584479,0.00028356,2]
[383498670,1756959049732,-819.0,0.00028356,2]
[383498671,1756959049741,-422.07311414,0.00028392,2]
[383498672,1756959049751,-247.11795876,0.00028392,2]
[383498673,1756959049761,-632.2285981,0.00028392,2]
[383498674,1756959049770,-1520.98883126,0.00028392,2]
[383498675,1756959049780,-445.9070645,0.00028392,2]
[383498676,1756959049789,-500.0,0.00028493,2]
[383498677,1756959049799,-695.0,0.00028493,2]
[383498678,1756959049808,-819.0,0.00028493,2]
[383498679,1756959049817,-1023.2,0.000286,30]
[383498680,1756959049827,-500.0,0.0002863,2]
[383498681,1756959049837,-695.0,0.0002863,2]
[383498682,1756959049846,-819.0,0.0002863,2]
[383498683,1756959049856,-500.0,0.00028767,2]
[383498684,1756959049867,-695.0,0.00028767,2]
[383498685,1756959049877,-819.0,0.00028767,2]
[383498686,1756959049888,-1400.99259497,0.000289,2]
[383498687,1756959049898,-500.0,0.00028904,2]
[383498688,1756959049907,-695.0,0.00028904,2]
[383498689,1756959049918,-819.0,0.00028904,2]
[383498690,1756959049929,-150.0,0.0002902,2]
[383498691,1756959049939,-500.0,0.00029041,2]
[383498692,1756959049950,-695.0,0.00029041,2]
[383498693,1756959049960,-819.0,0.00029041,2]
[383498694,1756959049970,-5454.62,0.000291,7]
[383498695,1756959049980,-500.0,0.00029178,2]
[383498696,1756959049989,-695.0,0.00029178,2]
[383498697,1756959049999,-819.0,0.00029178,2]
[383498698,1756959050009,-404.89786367,0.00029315,2]
[383498699,1756959050019,-695.0,0.00029315,2]
[383498700,1756959050029,-819.0,0.00029315,2]
[383498701,1756959050039,-9387.4649024,0.00029341,11]
[383498702,1756959050049,-695.0,0.00029452,2]
[383498703,1756959050059,-819.0,0.00029452,2]
[383498704,1756959050068,-1175.0,0.00029586,2]
[383498705,1756959050078,-6163.0,0.00029586,2]
[383498706,1756959050087,-4163.0,0.00029586,2]
[383498707,1756959050096,-21149.0,0.00029586,2]
[383498708,1756959050106,-724.0,0.00029586,2]
[383498709,1756959050115,-695.0,0.00029589,2]
[383498710,1756959050125,-819.0,0.00029589,2]
[383498711,1756959050135,-695.0,0.00029726,2]
[383498712,1756959050144,-819.0,0.00029726,2]
[383498713,1756959050154,-4000.0,0.00029762,4]
[383498714,1756959050163,-2035.0,0.00029853,2]
[383498715,1756959050173,-3382.0,0.00029853,2]
[383498716,1756959050182,-1258.0,0.00029853,2]
[383498717,1756959050191,-924.0,0.00029853,2]
[383498718,1756959050202,-567.0,0.00029853,2]
[383498719,1756959050216,-1300.0,0.00029853,2]
[383498720,1756959050226,-600.0,0.00029853,2]
[383498721,1756959050236,-1577.0,0.00029853,2]
[383498722,1756959050246,-811.0,0.00029853,2]
[383498723,1756959050259,-695.0,0.00029863,2]
[383498724,1756959050268,-819.0,0.00029863,2]
[383498725,1756959050278,-327.3491668,0.0002988,2]
[383498726,1756959050289,-150.0,0.0002991,30]
[383498727,1756959050299,-431.33080734,0.0002991,30]
[383498728,1756959050309,-695.0,0.0003,2]
[383498729,1756959050318,-819.0,0.0003,2]
[383498730,1756959050328,-695.0,0.00030137,2]
[383498731,1756959050337,-819.0,0.00030137,2]
[383498732,1756959050346,-5433.0,0.00030214,2]
[383498733,1756959050356,-695.0,0.00030274,2]
[383498734,1756959050365,-819.0,0.00030274,2]
[383498735,1756959050375,-150.0,0.00030389,2]
[383498736,1756959050385,-695.0,0.00030411,2]
[383498737,1756959050395,-819.0,0.00030411,2]
[383498738,1756959050405,-9387.4649024,0.00030452,14]
[383498739,1756959050415,-695.0,0.00030548,2]
[383498740,1756959050425,-819.0,0.00030548,2]
[383498741,1756959050435,-5454.62,0.000306,7]
[383498742,1756959050445,-510.0,0.00030661,5]
[383498743,1756959050455,-695.0,0.00030685,2]
[383498744,1756959050464,-819.0,0.00030685,2]
[383498745,1756959050475,-695.0,0.00030822,2]
[383498746,1756959050484,-819.0,0.00030822,2]
[383498747,1756959050494,-933.3596688,0.00030868,2]
[383498748,1756959050503,-946.781,0.00030958,27]
[383498749,1756959050513,-219.77605672,0.00030958,27]
[383498750,1756959050523,-695.0,0.00030959,2]
[383498751,1756959050532,-819.0,0.00030959,2]
[383498752,1756959050542,-160.0,0.00031,120]